[Event "28th Hit Open-A 2024"]
[Site "Nova Gorica"]
[Date "2024.01.29"]
[Round "5.12"]
[White "Ceschia, Ivano"]
[Black "Lavrencic, Matic"]
[Result "1-0"]
[ECO "B30"]
[WhiteElo "2183"]
[BlackElo "2299"]
[Annotator "TA"]
[PlyCount "71"]
[EventDate "2024.01.22"]
[EventType "swiss"]
[EventCountry "SLO"]
[SourceTitle "playchess.com"]
[Source "ChessBase"]
[SourceQuality "1"]
[TimeControl "5400+30"]

{[%evp 13,71,0,6,0,31,33,27,24,29,0,16,0,0,0,21,-16,-11,-23,0,-17,-1,-25,-18,-26,-29,-25,-8,-18,-13,-14,0,0,0,0,0,0,0,0,16,0,0,0,0,-38,-38,-58,-6,-10,-6,-7,0,0,0,0,39,48,139,144,1110,1118]} 1. e4 {[%emt 0:09:34]} c5 {[%emt 0:00:13]} 2. Nf3 {[%emt 0:00:11]} e6 {[%emt 0:00:06]} 3. d3 {[%emt 0:01:58]} Nc6 {[%emt 0:01:33]} 4. g3 {[%emt 0:00:15]} d6 {[%emt 0:02:02]} 5. Bg2 {[%emt 0:00:09]} Nf6 {[%emt 0:00:12]} 6. O-O {[%emt 0:00:22]} Be7 {[%emt 0:01:09]} 7. Nbd2 {[%emt 0:03:03]} O-O {[%emt 0:00:56]} 8. a4 {[%emt 0:00:14]} Bd7 {[%emt 0:01:38]} 9. Nc4 {[%emt 0:01:23]} Rc8 {[%emt 0:13:39]} 10. Re1 {[%emt 0:14:50] White has an edge.} h6 {[%emt 0:12:46]} 11. Bf4 {[%emt 0:10:11]} e5 {[%emt 0:00:45]} 12. Bd2 {[%emt 0:01:10]} Be6 {[%emt 0:03:44]} 13. Ne3 {[%emt 0:17:00]} Re8 {[%emt 0:06:35]} 14. Nh4 {[%emt 0:01:18][%cal Bf3h4,Bh4f5,Bf5e3,Be3c4][%mdl 32]} d5 {[%emt 0:04:53]} 15. Nhf5 {[%emt 0:01:47]} Bf8 {[%emt 0:01:41]} 16. exd5 {[%emt 0:24:06]} Nxd5 {[%emt 0:00:28]} 17. Bxd5 {[%emt 0:00:24]} (17. Nxd5 {simplifies} Bxf5 18. Ne3 Be6 19. Bc3) 17... Bxd5 {[%emt 0:00:06]} 18. Nxd5 {[%emt 0:00:13]} Qxd5 {[%emt 0:00:07]} 19. Qg4 {[%emt 0:01:06][%cal Of5g7] [#] aiming for Nxg7!} Kh8 {[%emt 0:06:42]} 20. Ne3 {[%emt 0:01:02]} Qd8 {[%emt 0:03:55]} 21. Bc3 {[%emt 0:00:28]} Rc7 {[%emt 0:13:09]} 22. Nc4 {[%emt 0:00:31]} Rce7 {[%emt 0:02:07]} 23. Re2 {[%emt 0:00:13]} Qc7 {[%emt 0:14:40]} 24. Rae1 {[%emt 0:00:28]} Kg8 {[%emt 0:01:12]} 25. h4 {[%emt 0:00:33]} Re6 {[%emt 0:03:00]} 26. h5 {[%emt 0:00:09]} Nd4 {[%emt 0:05:35]} 27. Bxd4 {[%emt 0:00:16]} cxd4 {[%emt 0:00:02]} 28. Qf5 {[%emt 0:01:42][%cal Re2e5]} Bb4 {[%emt 0:00:22]} 29. Rc1 {[%emt 0:03:36]} a6 {[%emt 0:00:49]} (29... e4 $15) 30. c3 $11 {[%emt 0:00:23]} dxc3 {[%emt 0:00:02]} 31. bxc3 {[%emt 0:00:06]} Bd6 {[%emt 0:00:43]} 32. Qe4 {[%emt 0:00:32]} Bc5 {[%emt 0:00:45]} 33. a5 {[%emt 0:00:22]} Ba7 {[%emt 0:00:38]} 34. Rb1 {[%emt 0:00:10]} R8e7 {[%emt 0:00:25] [#]} ({Black should try} 34... R6e7 $14) 35. Reb2 $1 $16 {[%emt 0:00:11][%cal Rb2b7] White is more active.} Rc6 $2 {[%emt 0:00:29][%mdl 8192]} (35... f5 $16 36. Qd5 (36. Qxb7 Qc5 $11) (36. Qxf5 e4 $14) 36... Qc6 37. Qxc6 bxc6) 36. Rxb7 {[%emt 0:00:16] Weighted Error Value: White=0.08 (flawless) /Black=0.15 (very precise) .  Loses game:     	---       	Black=1      Mistake:       	---       	Black=2      Inaccurate:     	White=2     	Black=2      OK:         	White=8     	Black=8      Best:        	White=2     	Black=2      Strong:       	White=1     	---} 1-0

[Event "28th Hit Open-A 2024"]
[Site "Nova Gorica"]
[Date "2024.01.29"]
[Round "5.13"]
[White "Furlan, Miha"]
[Black "Szegedy, Matyas"]
[Result "1/2-1/2"]
[ECO "B12"]
[WhiteElo "2287"]
[BlackElo "2129"]
[Annotator "TA"]
[PlyCount "109"]
[EventDate "2024.01.22"]
[EventType "swiss"]
[EventCountry "SLO"]
[SourceTitle "playchess.com"]
[Source "ChessBase"]
[SourceQuality "1"]
[TimeControl "5400+30"]

{[%evp 14,109,28,18,37,22,30,9,25,16,26,14,20,13,10,14,11,12,51,25,54,27,51,56,68,58,77,29,63,5,41,0,48,0,0,0,10,11,14,9,12,7,12,0,12,16,8,0,0,0,22,0,0,0,0,0,0,-71,-77,-70,0,0,22,6,20,20,37,28,25,6,8,0,4,0,0,0,0,0,0,0,0,0,0,0,0,0,0,0,0,0,0,0,0,0,0,0,0,0]} 1. e4 {[%emt 0:00:03]} c6 {[%emt 0:00:37]} 2. d4 {[%emt 0:00:11]} d5 {[%emt 0:00:07]} 3. e5 {[%emt 0:00:12]} Bf5 {[%emt 0:00:18]} 4. Nf3 {[%emt 0:00:15]} e6 {[%emt 0:00:40]} 5. Be2 {[%emt 0:00:16]} Nd7 {[%emt 0:01:07]} 6. O-O {[%emt 0:00:44]} h6 {[%emt 0:02:06]} 7. c3 {[%emt 0:03:13]} Ne7 {[%emt 0:02:02]} 8. Na3 {[%emt 0:01:13]} Bh7 {[%emt 0:15:39]} 9. Nc2 {[%emt 0:02:16]} Qc7 {[%emt 0:08:59]} 10. Nfe1 {[%emt 0:07:46]} c5 {[%emt 0:02:53]} 11. f4 {[%emt 0:02:14]} Nc6 {[%emt 0:03:06]} 12. Be3 {[%emt 0:11:41]} Be7 {[%emt 0:02:24]} 13. Bd3 {[%emt 0:02:55]} Bxd3 {[%emt 0:04:12]} 14. Nxd3 {[%emt 0:00:26]} c4 {[%emt 0:02:47]} 15. Nde1 {[%emt 0:03:50]} O-O-O {[%emt 0:09:00]} 16. Nf3 {[%emt 0:07:19]} Nb6 {[%emt 0:06:46]} 17. Qd2 {[%emt 0:02:17]} Kb8 {[%emt 0:02:15]} 18. Bf2 {[%emt 0:01:05]} Rdg8 {[%emt 0:05:11]} 19. Ne3 $1 {[%emt 0:02:30]} Qd7 {[%emt 0:05:56]} 20. Rae1 {[%emt 0:01:37]} (20. b3 $16) 20... g6 {[%emt 0:04:44]} 21. g3 {[%emt 0:03:18]} (21. Qc2 $14) 21... Ka8 {[%emt 0:09:03]} 22. Re2 {[%emt 0:01:06]} Rb8 {[%emt 0:02:07]} (22... Bd8 $11) 23. g4 {[%emt 0:01:49]} (23. Qc2 $14 {is more appropriate.}) 23... h5 $11 {[%emt 0:01:09]} 24. h3 {[%emt 0:00:27]} hxg4 {[%emt 0:00:21]} 25. hxg4 {[%emt 0:00:13]} Rh7 {[%emt 0:00:17]} 26. Bg3 {[%emt 0:01:03]} Rbh8 {[%emt 0:01:04]} (26... Rh3 {keeps more tension.} 27. Kg2 Rbh8 28. Qc2 Qd8) 27. Rh2 {[%emt 0:01:30]} Rxh2 {[%emt 0:00:56]} 28. Nxh2 {[%emt 0:00:44]} Qd8 {[%emt 0:01:01]} 29. Nf3 {[%emt 0:05:47]} Nd7 {[%emt 0:00:51]} 30. Kg2 {[%emt 0:01:58]} b5 {[%emt 0:03:28]} 31. Rh1 {[%emt 0:02:18]} Kb7 {[%emt 0:02:36]} 32. Rxh8 {[%emt 0:02:55]} Qxh8 {[%emt 0:00:05]} 33. Qe1 {[%emt 0:00:37]} b4 {[%emt 0:01:24]} 34. Bh4 {[%emt 0:00:46]} Bxh4 {[%emt 0:01:02]} 35. Qxh4 {[%emt 0:00:17]} (35. Nxh4 $11 {remains equal.} Qh6 36. g5) 35... Qxh4 $17 {[%emt 0:00:44]} 36. Nxh4 {[%emt 0:00:07]} bxc3 {[%emt 0:00:04]} (36... Nb6 $15 37. cxb4 Nxd4 (37... Nxb4 38. Nf3 $11)) 37. bxc3 $11 {[%emt 0:00:11][%mdl 4096] Endgame. KNN-KNN} Nb6 {[%emt 0:00:52]} 38. Nf3 {[%emt 0:03:46]} Na4 {[%emt 0:00:46]} 39. Nd1 {[%emt 0:00:13]} Kc7 {[%emt 0:00:03]} 40. Ng5 {[%emt 0:00:49]} Nd8 {[%emt 0:00:05]} 41. Kf3 {[%emt 0:00:37]} Kd7 {[%emt 0:00:15] The position is equal.} 42. Ke3 {[%emt 0:05:13]} Ke7 {[%emt 0:00:10]} 43. Nh7 {[%emt 0:01:57]} Nc6 {[%emt 0:00:40]} 44. Kd2 {[%emt 0:00:37]} a6 {[%emt 0:00:24]} 45. f5 {[%emt 0:03:09]} gxf5 {[%emt 0:00:20]} 46. gxf5 {[%emt 0:00:10]} Na7 {[%emt 0:00:43]} ({But not} 46... exf5 $6 47. Ne3 $16) 47. f6+ {[%emt 0:01:15]} Ke8 {[%emt 0:00:08]} 48. Ng5 {[%emt 0:00:38]} Nb5 {[%emt 0:00:06]} 49. Nf3 {[%emt 0:00:54]} Na3 {[%emt 0:00:55]} 50. Ng1 {[%emt 0:01:51]} Nb1+ {[%emt 0:01:20]} 51. Kc2 {[%emt 0:00:17]} Na3+ {[%emt 0:00:05]} 52. Kc1 {[%emt 0:00:18]} Kf8 {[%emt 0:00:30]} 53. Ne2 {[%emt 0:00:47]} Nb5 {[%emt 0:00:14]} 54. Kc2 {[%emt 0:02:44]} Na3+ {[%emt 0:00:17]} 55. Kc1 {[%emt 0:00:43] Weighted Error Value: White=0.13 (very precise) /Black=0.10 (very precise) .  Mistake:       	White=4     	Black=2      Inaccurate:     	White=3     	Black=4      OK:         	White=8     	Black=23     Best:        	White=1     	---        Strong:       	White=1     	---} 1/2-1/2

[Event "28th Hit Open-A 2024"]
[Site "Nova Gorica"]
[Date "2024.01.29"]
[Round "5.14"]
[White "Kozlovic, Jernej"]
[Black "Perossa, Nicolas"]
[Result "1-0"]
[ECO "A48"]
[WhiteElo "2174"]
[BlackElo "2277"]
[Annotator "RC"]
[PlyCount "107"]
[EventDate "2024.01.22"]
[EventType "swiss"]
[EventCountry "SLO"]
[SourceTitle "playchess.com"]
[Source "ChessBase"]
[SourceQuality "1"]
[TimeControl "5400+30"]

1. d4 {[%emt 0:00:04]} Nf6 {[%emt 0:00:07]} 2. Nf3 {[%emt 0:01:02]} g6 {[%emt 0:00:34]} 3. Bg5 {[%emt 0:00:40]} Bg7 {[%emt 0:06:48]} 4. e3 {[%emt 0:00:40]} d6 {[%emt 0:10:18]} 5. Bd3 {[%emt 0:01:05]} h6 {[%emt 0:00:15]} 6. Bh4 {[%emt 0:00:57]} Nbd7 {[%emt 0:06:57]} 7. c4 {[%emt 0:01:29]} g5 {[%emt 0:11:37]} 8. Bg3 {[%emt 0:00:17]} Nh5 {[%emt 0:00:07]} 9. Nc3 {[%emt 0:03:54]} Nxg3 {[%emt 0:11:07]} 10. hxg3 {[%emt 0:01:05]} c6 {[%emt 0:09:45]} 11. Qc2 {[%emt 0:03:29]} Qc7 {[%emt 0:09:00]} 12. O-O-O {[%emt 0:18:45]} Nf6 {[%emt 0:00:11]} 13. Nd2 {[%emt 0:11:33]} Bd7 {[%emt 0:03:15]} 14. f3 {[%emt 0:03:06]} O-O-O {[%emt 0:02:14]} 15. g4 {[%emt 0:03:33]} h5 {[%emt 0:04:03]} 16. gxh5 {[%emt 0:01:35]} Nxh5 {[%emt 0:00:27]} 17. g4 {[%emt 0:17:23]} Nf6 {[%emt 0:00:01]} 18. Nde4 {[%emt 0:00:16]} Qa5 {[%emt 0:07:31]} 19. Kb1 {[%emt 0:01:23]} Nxe4 {[%emt 0:11:21]} 20. Bxe4 {[%emt 0:00:53]} Rxh1 {[%emt 0:02:37]} 21. Rxh1 {[%emt 0:00:01]} Rh8 {[%emt 0:00:12]} 22. Rxh8+ {[%emt 0:05:25]} Bxh8 {[%emt 0:00:43]} 23. Qh2 {[%emt 0:00:43]} Bf6 {[%emt 0:00:00]} 24. a3 {[%emt 0:07:35]} e6 {[%emt 0:02:47]} 25. Qxd6 {[%emt 0:01:38]} Bd8 {[%emt 0:00:01]} 26. d5 {[%emt 0:03:12]} cxd5 {[%emt 0:00:39]} 27. cxd5 {[%emt 0:00:15]} Qb6 {[%emt 0:00:30]} 28. Qf8 {[%emt 0:03:27]} f6 {[%emt 0:00:46]} 29. dxe6 {[%emt 0:04:44]} Bxe6 {[%emt 0:00:08]} 30. Qe8 {[%emt 0:00:31]} Bd7 {[%emt 0:00:54]} 31. Bf5 {[%emt 0:00:14]} Bxf5+ {[%emt 0:00:25]} 32. gxf5 {[%emt 0:00:01]} Qd6 {[%emt 0:00:32]} 33. Kc2 {[%emt 0:01:18]} Qh2+ {[%emt 0:00:38]} 34. Kb3 {[%emt 0:00:10]} Qd6 {[%emt 0:00:15]} 35. Qb5 {[%emt 0:01:08]} a6 {[%emt 0:00:33]} 36. Qc4+ {[%emt 0:00:35]} Kb8 {[%emt 0:00:28]} 37. Nd5 {[%emt 0:01:06]} Bb6 {[%emt 0:00:41]} 38. e4 {[%emt 0:00:30]} Bf2 {[%emt 0:00:29]} 39. Qc3 {[%emt 0:00:17]} a5 {[%emt 0:00:33]} 40. Qxf6 {[%emt 0:01:23]} Qg3 {[%emt 0:00:23]} 41. Qd8+ {[%emt 0:00:19]} Ka7 {[%emt 0:00:01]} 42. Qxa5+ {[%emt 0:00:08]} Kb8 {[%emt 0:00:00]} 43. Qc3 {[%emt 0:01:17]} g4 {[%emt 0:00:11]} 44. fxg4 {[%emt 0:00:23]} Qxg4 {[%emt 0:00:02]} 45. Qd3 {[%emt 0:00:38]} Bh4 {[%emt 0:00:59]} 46. e5 {[%emt 0:00:26]} Qg1 {[%emt 0:00:50]} 47. e6 {[%emt 0:00:14]} Qe1 {[%emt 0:00:03]} 48. Ka2 {[%emt 0:00:36]} Qe5 {[%emt 0:00:11]} 49. Nb6 {[%emt 0:00:39]} Ka7 {[%emt 0:00:35]} 50. Qd5 {[%emt 0:00:18]} Qe1 {[%emt 0:00:19]} 51. Nd7 {[%emt 0:00:32]} b6 {[%emt 0:02:15]} 52. f6 {[%emt 0:00:14]} Qe2 {[%emt 0:00:12]} 53. f7 {[%emt 0:00:17]} Bf6 {[%emt 0:00:27]} 54. Nxf6 {[%emt 0:01:28]} 1-0

[Event "28th Hit Open-A 2024"]
[Site "Nova Gorica"]
[Date "2024.01.29"]
[Round "5.15"]
[White "Gaal, Zsoka"]
[Black "Labrovic, Jakov"]
[Result "1-0"]
[ECO "D33"]
[WhiteElo "2341"]
[BlackElo "1925"]
[Annotator "TA"]
[PlyCount "51"]
[EventDate "2024.01.22"]
[EventType "swiss"]
[EventCountry "SLO"]
[SourceTitle "playchess.com"]
[Source "ChessBase"]
[SourceQuality "1"]
[TimeControl "5400+30"]

{[%evp 16,51,70,72,56,63,67,72,72,38,47,52,75,52,93,91,91,97,91,89,87,87,92,52,78,78,79,83,90,83,148,173,143,148,263,259,1166,781]} 1. Nf3 {[%emt 0:00:04]} Nf6 {[%emt 0:00:07]} 2. g3 {[%emt 0:00:18]} e6 {[%emt 0:00:58]} 3. Bg2 {[%emt 0:00:10]} c5 {[%emt 0:00:11]} 4. c4 {[%emt 0:00:52]} d5 {[%emt 0:00:39]} 5. cxd5 {[%emt 0:00:18]} exd5 {[%emt 0:00:10]} 6. d4 {[%emt 0:00:13]} Nc6 {[%emt 0:00:26]} 7. O-O {[%emt 0:00:35]} Be6 {[%emt 0:00:19]} 8. Nc3 {[%emt 0:02:09]} cxd4 {[%emt 0:00:34]} 9. Nxd4 {[%emt 0:04:10]} Bc5 {[%emt 0:02:50]} 10. Be3 {[%emt 0:02:55]} Be7 {[%emt 0:07:16]} 11. Rc1 {[%emt 0:14:29] White is more active.} O-O {[%emt 0:00:54] White is better.} 12. Nxc6 {[%emt 0:00:26]} bxc6 {[%emt 0:00:18]} 13. Na4 {[%emt 0:00:14]} Qd7 {[%emt 0:05:08]} 14. Bc5 {[%emt 0:03:50]} Bh3 {[%emt 0:02:41]} 15. Bxe7 {[%emt 0:14:05]} (15. Bxh3 Qxh3 16. f3 (16. Bxe7 $2 {leads to mate.} Ng4 17. Re1 Qxh2+ 18. Kf1 Qxf2#) 16... Qe6 $11) 15... Bxg2 {[%emt 0:00:19]} 16. Bxf8 {[%emt 0:06:06]} ({Don't play} 16. Kxg2 Qxe7 17. Rxc6 Rfe8 $14) 16... Bxf1 {[%emt 0:00:14]} 17. Bxg7 {[%emt 0:01:52]} Bxe2 {[%emt 0:01:12]} 18. Qxe2 {[%emt 0:00:46]} Kxg7 {[%emt 0:00:16]} 19. Nc5 {[%emt 0:04:05][%cal Ba4c5,Bc5d3,Bd3f4][%mdl 32]} Qf5 {[%emt 0:26:10]} 20. Kg2 {[%emt 0:05:20]} Rb8 {[%emt 0:05:42]} 21. b3 {[%emt 0:04:59]} Rd8 {[%emt 0:07:06]} 22. Qf3 {[%emt 0:08:05]} Qg6 {[%emt 0:03:11]} ({Black should try} 22... Qxf3+ 23. Kxf3 Rc8) 23. Nd3 $16 {[%emt 0:00:53]} Nd7 {[%emt 0:09:57]} 24. Nf4 {[%emt 0:03:39]} Qh6 {[%emt 0:08:56]} (24... Qe4 $16 {is a better defense.}) 25. Qc3+ $18 {[%emt 0:02:41]} Kf8 $2 {[%emt 0:00:15] [#]} (25... Kg8 26. Qxc6 Qxc6 27. Rxc6 Nf8) 26. Qh8+ {[%emt 0:00:37] Weighted Error Value: White=0.06 (flawless) /Black=0.27 (precise) .  Mistake:       	---       	Black=3      Inaccurate:     	White=2     	Black=2      OK:         	White=6     	Black=4      Best:        	White=2     	Black=2} 1-0

[Event "28th Hit Open-A 2024"]
[Site "Nova Gorica"]
[Date "2024.01.29"]
[Round "5.16"]
[White "Stevanic, David"]
[Black "Orsatti, Marcello"]
[Result "1-0"]
[ECO "B01"]
[WhiteElo "2294"]
[BlackElo "1918"]
[Annotator "TA"]
[PlyCount "85"]
[EventDate "2024.01.22"]
[EventType "swiss"]
[EventCountry "SLO"]
[SourceTitle "playchess.com"]
[Source "ChessBase"]
[SourceQuality "1"]
[TimeControl "5400+30"]

{[%evp 9,85,42,77,19,18,12,27,14,12,0,-12,-6,-5,0,0,0,16,0,0,0,0,0,25,0,-3,4,44,0,20,21,56,42,54,19,27,23,22,0,0,0,0,-30,24,27,36,28,36,30,16,0,87,12,13,17,42,-18,97,92,104,57,158,137,118,69,179,175,183,189,187,167,170,0,299,292,506,489,463,436]} 1. e4 {[%emt 0:00:03]} d5 {[%emt 0:00:23]} 2. exd5 {[%emt 0:00:07]} Qxd5 {[%emt 0:00:08]} 3. Nc3 {[%emt 0:00:53]} Qd8 {[%emt 0:00:21]} 4. Bc4 {[%emt 0:00:38]} Nf6 {[%emt 0:00:48]} 5. Nf3 {[%emt 0:00:58]} Bf5 {[%emt 0:02:16] [#]} 6. d3 {[%emt 0:02:58]} (6. Ne5 $1 $16 {[%csl Ge5][%cal Rc4f7]} e6 7. Qf3) 6... e6 $11 {[%emt 0:00:39]} 7. h3 {[%emt 0:01:05]} c6 {[%emt 0:00:19]} 8. Qe2 {[%emt 0:02:25] White has an edge.} Qc7 {[%emt 0:10:49]} 9. g4 {[%emt 0:00:50]} Bg6 {[%emt 0:00:23]} 10. Ne5 $1 {[%emt 0:00:07] h4 is the strong threat.} Nbd7 {[%emt 0:01:53]} 11. Nxd7 {[%emt 0:04:28]} Qxd7 {[%emt 0:02:24]} 12. f4 {[%emt 0:00:52]} O-O-O {[%emt 0:02:44]} 13. Qf2 {[%emt 0:04:06]} b6 {[%emt 0:05:16]} 14. Ba6+ {[%emt 0:05:52]} Kb8 {[%emt 0:04:07]} 15. Be3 {[%emt 0:05:11]} Qc7 {[%emt 0:05:54]} 16. a3 {[%emt 0:04:03]} Nd5 {[%emt 0:02:20]} 17. Nxd5 {[%emt 0:01:21]} Rxd5 {[%emt 0:00:57]} 18. b4 {[%emt 0:03:31]} Be7 {[%emt 0:05:55]} 19. Bc4 {[%emt 0:02:41]} Bf6 {[%emt 0:07:57] [#]} 20. O-O $1 {[%emt 0:02:15]} Rd7 {[%emt 0:04:26]} (20... Bxa1 21. Bxd5) 21. Ra2 {[%emt 0:09:00]} Rhd8 {[%emt 0:00:19]} 22. a4 {[%emt 0:01:06]} Bd4 {[%emt 0:02:07]} 23. b5 {[%emt 0:04:31]} cxb5 {[%emt 0:04:03]} 24. Bxd4 {[%emt 0:02:22]} Rxd4 {[%emt 0:00:56]} (24... bxc4 $2 25. Be5 (25. Bxg7 Qc6 $11) 25... Rd6 26. a5 $18 (26. Bxg7 Rd5 $11)) 25. axb5 {[%emt 0:00:12]} R8d7 {[%emt 0:06:22]} (25... Be4 $142 $1) 26. f5 {[%emt 0:15:50]} exf5 {[%emt 0:00:33]} 27. gxf5 {[%emt 0:00:16]} Bh5 {[%emt 0:02:34][%cal Od7e7]} 28. c3 $36 {[%emt 0:04:21][%mdl 2048] White has good play.} R4d6 {[%emt 0:06:16]} 29. Qh4 {[%emt 0:05:06]} Rh6 {[%emt 0:04:25] [#]} (29... Qc5+ $11 30. Kg2 Rxd3 31. Bxd3 Qd5+ 32. Be4 Qxa2+ 33. Rf2 Qc4) 30. Qf4 {[%emt 0:01:57] White is more active.} (30. Re1 $1 $16 {[%cal Re1e8] Strongly threatening Re8+.} Qc5+ (30... Be2 31. Qf2 $16) 31. Rf2) 30... Qxf4 {[%emt 0:00:41]} 31. Rxf4 {[%emt 0:00:03]} f6 {[%emt 0:00:50]} 32. Be6 {[%emt 0:04:56]} ({White should try} 32. h4 $14) 32... Bf7 {[%emt 0:05:08]} (32... Rxd3 $11 {keeps the balance.} 33. Rg2 g6 (33... Rxc3 $2 34. Rxg7 Rc1+ 35. Kf2 $18) (33... Rxh3 $2 34. Rc4 $18)) 33. Bxd7 $16 {[%emt 0:05:35]} Bxa2 {[%emt 0:00:02][%mdl 4096] Endgame. KRB-KRB} 34. Kh2 {[%emt 0:02:00]} (34. h4 $16) 34... g6 {[%emt 0:01:56]} ({Black should play} 34... Bb1 $1 $14) 35. Be6 {[%emt 0:03:17]} Bb1 {[%emt 0:00:25]} 36. fxg6 {[%emt 0:01:54]} (36. Bc4 $16) 36... Rxg6 {[%emt 0:03:52]} ({Better is} 36... hxg6 $14 37. Rf3 (37. Rxf6 Bxd3 38. Bg4 Rh7 $15) 37... Rh5) 37. Bf5 $18 {[%emt 0:00:06]} Rg7 {[%emt 0:01:17]} 38. Rf2 {[%emt 0:00:21] Against Bc2. Threatens to win with Rb2.} Re7 {[%emt 0:02:22]} 39. Be4 {[%emt 0:01:34]} Rd7 {[%emt 0:00:40]} 40. Bf5 {[%emt 0:00:31]} (40. Rxf6 Bxd3 41. Bc6 Re7 $16) (40. c4 $18) 40... Rd6 $2 {[%emt 0:01:07][%mdl 8192]} (40... Re7 $1 $11 {and Black is okay.}) 41. Rb2 {[%emt 0:00:33]} Rxd3 $2 {[%emt 0:02:01]} (41... Bxd3 42. Rd2 Bxf5 43. Rxd6 Kc7 44. Rxf6 Bd3 45. Rf7+ Kd6) 42. Rxb1 {[%emt 0:00:32]} Rxc3 {[%emt 0:00:05]} 43. Bxh7 {[%emt 0:00:03] Weighted Error Value: White=0.21 (precise) /Black=0.42.  Loses game:     	---       	Black=1      Missed win:     	White=1     	---        Mistake:       	White=4     	Black=6      Inaccurate:     	White=4     	Black=2      OK:         	White=13    	Black=19     Best:        	White=2     	---        Strong:       	White=1     	---} 1-0

[Event "28th Hit Open-A 2024"]
[Site "Nova Gorica"]
[Date "2024.01.29"]
[Round "5.17"]
[White "Hozjan, Erik"]
[Black "Debevec, Blaz"]
[Result "0-1"]
[ECO "C58"]
[WhiteElo "1897"]
[BlackElo "2077"]
[Annotator "NA RC"]
[PlyCount "110"]
[EventDate "2024.01.22"]
[EventType "swiss"]
[EventCountry "SLO"]
[SourceTitle "playchess.com"]
[Source "ChessBase"]
[SourceQuality "1"]
[TimeControl "5400+30"]

1. e4 {[%emt 0:00:32]} e5 {[%emt 0:00:24]} 2. Nf3 {[%emt 0:00:08]} Nc6 {[%emt 0:00:08]} 3. Bc4 {[%emt 0:00:19]} Nf6 {[%emt 0:00:08]} 4. Ng5 {[%emt 0:01:17]} d5 {[%emt 0:00:19]} 5. exd5 {[%emt 0:00:07]} Na5 {[%emt 0:00:07]} 6. Bb5+ {[%emt 0:00:27]} Bd7 {[%emt 0:00:11]} 7. Bxd7+ {[%emt 0:00:13]} Qxd7 {[%emt 0:00:38]} 8. O-O {[%emt 0:01:50]} h6 {[%emt 0:02:06]} 9. Nf3 {[%emt 0:00:56]} e4 {[%emt 0:00:18]} 10. Ne5 {[%emt 0:01:43]} Qxd5 {[%emt 0:02:44]} 11. Ng4 {[%emt 0:00:14]} Nxg4 {[%emt 0:04:12]} 12. Qxg4 {[%emt 0:00:06]} h5 {[%emt 0:00:11]} 13. Nc3 {[%emt 0:02:30]} hxg4 {[%emt 0:00:47]} 14. Nxd5 {[%emt 0:00:05]} Bd6 {[%emt 0:00:09]} 15. g3 {[%emt 0:00:15]} Rh5 {[%emt 0:01:44]} 16. Ne3 {[%emt 0:00:25]} f5 {[%emt 0:00:17]} 17. d3 {[%emt 0:00:45]} exd3 {[%emt 0:00:09]} 18. Bd2 {[%emt 0:01:04]} Nc6 {[%emt 0:00:31]} 19. Bc3 {[%emt 0:00:05]} O-O-O {[%emt 0:00:36]} 20. Kg2 {[%emt 0:04:42]} Rdh8 {[%emt 0:01:26]} 21. Rh1 {[%emt 0:00:06]} Be5 {[%emt 0:00:20]} 22. cxd3 {[%emt 0:00:36]} g6 {[%emt 0:01:45]} 23. Rad1 {[%emt 0:02:20]} Bd4 {[%emt 0:07:46]} 24. Nc2 {[%emt 0:01:31]} Bxc3 {[%emt 0:00:24]} 25. bxc3 {[%emt 0:00:05]} Ne5 {[%emt 0:00:18]} 26. Ne1 {[%emt 0:07:21]} R5h7 {[%emt 0:02:29]} 27. d4 {[%emt 0:00:33]} Nc4 {[%emt 0:01:03]} 28. Nd3 {[%emt 0:00:31]} g5 {[%emt 0:01:22]} 29. Rde1 {[%emt 0:01:40]} Rf8 {[%emt 0:00:49]} 30. Ne5 {[%emt 0:00:22]} Nxe5 {[%emt 0:02:25]} 31. Rxe5 {[%emt 0:00:06]} Kd7 {[%emt 0:00:20]} 32. Rhe1 {[%emt 0:00:18]} Rfh8 {[%emt 0:02:51]} 33. Rh1 {[%emt 0:00:20]} f4 {[%emt 0:01:31]} 34. gxf4 {[%emt 0:24:00]} gxf4 {[%emt 0:00:11]} 35. Rg5 {[%emt 0:00:07]} Rh4 {[%emt 0:02:59]} 36. Rg7+ {[%emt 0:04:43]} Kd8 {[%emt 0:00:27]} 37. a4 {[%emt 0:01:14]} b6 {[%emt 0:02:57]} 38. a5 {[%emt 0:02:47]} bxa5 {[%emt 0:01:43]} 39. Rg5 {[%emt 0:00:07]} a4 {[%emt 0:00:50]} 40. Ra5 {[%emt 0:00:45]} Rh3 {[%emt 0:02:44]} 41. f3 {[%emt 0:03:34]} gxf3+ {[%emt 0:02:02]} 42. Kf2 {[%emt 0:00:08]} Rg8 {[%emt 0:00:32]} 43. Rxa4 {[%emt 0:02:07]} Rg2+ {[%emt 0:00:24]} 44. Kf1 {[%emt 0:00:08]} Rc2 {[%emt 0:00:28]} 45. Ra1 {[%emt 0:00:14]} a5 {[%emt 0:01:05]} 46. Rg1 {[%emt 0:00:15]} Rhxh2 {[%emt 0:00:40]} 47. Rg8+ {[%emt 0:00:19]} Ke7 {[%emt 0:00:14]} 48. Kg1 {[%emt 0:00:05]} Rhg2+ {[%emt 0:02:06]} 49. Rxg2 {[%emt 0:00:08]} fxg2 {[%emt 0:00:12]} 50. Rxa5 {[%emt 0:03:12]} f3 {[%emt 0:00:17]} 51. Ra1 {[%emt 0:00:04]} Ke6 {[%emt 0:01:13]} 52. Kh2 {[%emt 0:00:25]} Kf5 {[%emt 0:00:40]} 53. Kg3 {[%emt 0:00:06]} Ke4 {[%emt 0:00:17]} 54. Re1+ {[%emt 0:00:46]} Re2 {[%emt 0:00:26]} 55. Rd1 {[%emt 0:00:03]} f2 {[%emt 0:02:29]} 0-1